fUST/lending_fUST_20251226
["ID","MTS","AMOUNT","RATE_DAILY","PERIOD"]
[399798813,1766681446278,-500.0,0.00013587,2]
[399798814,1766681446289,-500.0,0.00013587,2]
[399798815,1766681446299,-500.0,0.00013587,2]
[399798817,1766681446309,-500.0,0.00013587,2]
[399798819,1766681446320,-500.0,0.00013587,2]
[399798821,1766681446330,-500.0,0.00013587,2]
[399798823,1766681446341,-500.0,0.00013587,2]
[399798825,1766681446351,-362.49492902,0.00013587,2]
[399798827,1766681446368,-137.50507098,0.00013587,2]
[399798829,1766681446378,-500.0,0.00013587,2]
[399798831,1766681446388,-500.0,0.00013587,2]
[399798833,1766681446399,-500.0,0.00013587,2]
[399798836,1766681446409,-500.0,0.00013587,2]
[399798838,1766681446420,-500.0,0.00013587,2]
[399798840,1766681446430,-500.0,0.00013587,2]
[399798842,1766681446441,-500.0,0.00013587,2]
[399798844,1766681446453,-500.0,0.00013587,2]
[399798846,1766681446464,-428.10547778,0.00013587,2]
[399798849,1766681446474,-7000.0,0.00013594,2]
[399798851,1766681446484,-500.0,0.00013596,2]
[399798853,1766681446495,-500.0,0.00013596,2]
[399798855,1766681446505,-500.0,0.00013596,2]
[399798857,1766681446517,-563.67713965,0.00013596,2]
[399798859,1766681446526,-12598.3023581,0.00013597,2]
[399798868,1766681490840,200.0,0.00020612,120]
[399798875,1766681569671,500.0,0.00032876,120]
[399798876,1766681571580,500.0,0.00032876,120]
[399798877,1766681573737,500.0,0.00032876,120]
[399798878,1766681575622,500.0,0.00032876,120]
[399798879,1766681577638,500.0,0.00032876,120]
[399798880,1766681579569,500.0,0.00032876,120]
[399798881,1766681581616,500.0,0.00032876,120]
[399798882,1766681583514,500.0,0.00032876,120]
[399798883,1766681585530,500.0,0.00032876,120]
[399798884,1766681592373,500.0,0.00032876,120]
[399798885,1766681594285,500.0,0.00032876,120]
[399798886,1766681596423,500.0,0.00032876,120]
[399798888,1766681598299,500.0,0.00032876,120]
[399798889,1766681600447,500.0,0.00032876,120]
[399798890,1766681602407,500.0,0.00032876,120]
[399798892,1766681610478,500.0,0.00032876,120]
[399798893,1766681610734,200.0,0.00024693,120]
[399798894,1766681613491,500.0,0.00032876,120]
[399798895,1766681615150,500.01,0.00032876,120]
[399798896,1766681620964,515.6244822,0.00030137,120]
[399798897,1766681650599,5000.0,6e-05,10]
[399798899,1766681673506,5000.0,6e-05,10]
[399798913,1766682060966,500.0,0.00032876,120]
[399798914,1766682061204,500.0,0.00032876,120]
[399798915,1766682061430,500.0,0.00032876,120]
[399798916,1766682061754,500.0,0.00032876,120]
[399798917,1766682062027,500.0,0.00032876,120]
[399798918,1766682062326,500.0,0.00032876,120]
[399798919,1766682062559,500.0,0.00032876,120]
[399798924,1766682372985,1213.85,0.00032876,120]
[399798926,1766682479267,284.42,2.997e-05,2]
[399798927,1766682479709,284.42,2.997e-05,2]
[399798949,1766682632038,-625.36181593,4.851e-05,2]
[399798952,1766682632051,-4374.63818407,4.851e-05,2]
[399798954,1766682632063,-300.0,4.899e-05,2]
[399798956,1766682632074,-300.0,4.899e-05,2]
[399798958,1766682632085,-300.0,4.899e-05,2]
[399798960,1766682632096,-300.0,4.899e-05,2]
[399798962,1766682632106,-300.0,4.899e-05,2]
[399798963,1766682632117,-1200.0,4.899e-05,2]
[399798964,1766682632127,-500.0,4.9e-05,2]
[399798966,1766682632138,-500.0,4.9e-05,2]
[399798968,1766682632148,-500.0,4.9e-05,2]
[399798970,1766682632158,-344.58161624,4.9e-05,2]
[399798972,1766682632168,-150.0,4.938e-05,2]
[399798974,1766682632178,-1200.0,4.994e-05,2]
[399798977,1766682632189,-300.0,4.997e-05,2]
[399798981,1766682632199,-300.0,4.997e-05,2]
[399798983,1766682632215,-300.0,4.997e-05,2]
[399798985,1766682632227,-300.0,4.997e-05,2]
[399798987,1766682632238,-300.0,4.997e-05,2]
[399798989,1766682632248,-300.0,4.997e-05,2]
[399798990,1766682632259,-300.0,4.997e-05,2]
[399798991,1766682632269,-300.0,4.997e-05,2]
[399798993,1766682632280,-300.0,4.997e-05,2]
[399798994,1766682632290,-300.0,4.997e-05,2]
[399798996,1766682632301,-300.0,4.997e-05,2]
[399798997,1766682632313,-300.0,4.997e-05,2]
[399798999,1766682632326,-300.0,4.997e-05,2]
[399799000,1766682632337,-300.0,4.997e-05,2]
[399799001,1766682632348,-300.0,4.997e-05,2]
[399799002,1766682632358,-672.74,5e-05,2]
[399799003,1766682632371,-600.0,5.096e-05,2]
[399799004,1766682632382,-1399.0197742,5.574e-05,2]
[399799005,1766682632392,-672.74,5.6e-05,2]
[399799006,1766682632404,-720.0,5.606e-05,2]
[399799007,1766682632414,-943.14,6.075e-05,2]
[399799008,1766682632425,-672.74,6.1e-05,2]
[399799009,1766682632436,-864.0,6.166e-05,2]
[399799010,1766682632447,-1886.28,6.365e-05,2]
[399799011,1766682632457,-500.0,6.646e-05,2]
[399799012,1766682632468,-500.0,6.646e-05,2]
[399799013,1766682632479,-500.0,6.646e-05,2]
[399799014,1766682632490,-478.29012786,6.646e-05,2]
[399799015,1766682632500,-334.69011136,6.646e-05,2]
[399799016,1766682632511,-500.0,6.646e-05,2]
[399799017,1766682632521,-516.47320785,6.646e-05,2]
[399799018,1766682632531,-500.0,6.646e-05,2]
[399799019,1766682632541,-500.0,6.646e-05,2]
[399799020,1766682632551,-500.0,6.646e-05,2]
[399799021,1766682632563,-500.0,6.646e-05,2]
[399799022,1766682632574,-592.81054778,6.646e-05,2]
[399799023,1766682632585,-500.0,6.646e-05,2]
[399799024,1766682632595,-500.0,6.646e-05,2]
[399799025,1766682632605,-500.81971669,6.646e-05,2]
[399799026,1766682632616,-500.0,6.646e-05,2]
[399799027,1766682632627,-500.0,6.646e-05,2]
[399799028,1766682632637,-500.0,6.646e-05,2]
[399799029,1766682632648,-500.0,6.646e-05,2]
[399799030,1766682632658,-500.0,6.646e-05,2]
[399799031,1766682632668,-500.0,6.646e-05,2]
[399799032,1766682632678,-500.0,6.646e-05,2]
[399799033,1766682632689,-500.0,6.646e-05,2]
[399799034,1766682632699,-380.81008553,6.646e-05,2]
[399799035,1766682632850,-373.11910904,6.646e-05,2]
[399799052,1766682638172,-298.65129772,6.654e-05,2]
[399799053,1766682638184,-2530.77870228,6.654e-05,2]
[399799054,1766682638195,-672.74,6.7e-05,2]
[399799055,1766682638206,-1000.0,6.783e-05,2]
[399799056,1766682638218,-177.0,6.938e-05,2]
[399799057,1766682638228,-3772.57,6.943e-05,2]
[399799058,1766682638239,-151.0,7.078e-05,2]
[399799059,1766682638249,-4715.71,7.232e-05,2]
[399799060,1766682638260,-413.55741219,7.3e-05,2]
[399799062,1766682638272,-259.18258781,7.3e-05,2]
[399799063,1766682638283,-21.85741219,7.46e-05,2]
[399799064,1766682638300,-288.65514959,7.46e-05,2]
[399799067,1766682638311,-146.86396586,7.461e-05,2]
[399799069,1766682638326,-853.13603414,7.461e-05,2]
[399799071,1766682638337,-244.0,7.461e-05,2]
[399799072,1766682638348,-5658.85,7.522e-05,2]
[399799073,1766682638359,-672.74,7.8e-05,2]
[399799074,1766682638371,-4120.48013243,7.811e-05,2]
[399799075,1766682638509,-701.99014555,7.811e-05,2]
[399799076,1766682638522,-1779.52972202,7.811e-05,2]
[399799077,1766682638534,-196.172715,7.909e-05,2]
[399799078,1766682638544,-7545.14,8.1e-05,2]
[399799079,1766682638555,-166.0,8.119e-05,2]
[399799080,1766682638566,-166.0,8.119e-05,2]
[399799081,1766682638577,-166.0,8.119e-05,2]
[399799082,1766682638588,-166.0,8.119e-05,2]
[399799083,1766682638599,-166.0,8.119e-05,2]
[399799084,1766682638610,-166.0,8.119e-05,2]
[399799085,1766682638620,-166.0,8.119e-05,2]
[399799086,1766682638630,-165.26,8.119e-05,2]
[399799087,1766682638640,-1000.0,8.207e-05,2]
[399799088,1766682638651,-492.0,8.207e-05,2]
[399799089,1766682638662,-165.29036961,8.219e-05,2]
[399799090,1766682638672,-500.0,8.219e-05,2]
[399799091,1766682638683,-295.280721,8.219e-05,2]
[399799092,1766682638693,-295.280721,8.219e-05,2]
[399799093,1766682638703,-295.280721,8.219e-05,2]
[399799094,1766682638714,-295.280721,8.219e-05,2]
[399799095,1766682638724,-295.280721,8.219e-05,2]
[399799096,1766682638735,-295.280721,8.219e-05,2]
[399799097,1766682638745,-295.280721,8.219e-05,2]
[399799098,1766682638755,-295.280721,8.219e-05,2]
[399799099,1766682638768,-672.74,8.4e-05,2]
[399799100,1766682638779,-295.280721,8.411e-05,2]
[399799101,1766682638788,-295.280721,8.411e-05,2]
[399799102,1766682638798,-295.280721,8.411e-05,2]
[399799103,1766682638809,-295.280721,8.411e-05,2]
[399799104,1766682638820,-8488.28,8.491e-05,2]
[399799105,1766682638830,-228.39441198,8.676e-05,2]
[399799106,1766682638840,-9431.42,8.784e-05,2]
[399799107,1766682638850,-211.06506883,8.938e-05,2]
[399799108,1766682638860,-672.74,9e-05,2]
[399799109,1766682638871,-1000.0,9.028e-05,2]
[399799110,1766682638881,-791.0,9.028e-05,2]
[399799111,1766682638891,-672.74,9.6e-05,2]
[399799112,1766682638901,-1000.0,9.931e-05,2]
[399799113,1766682638911,-1000.0,9.931e-05,2]
[399799114,1766682638920,-672.74,0.000101,2]
[399799115,1766682638931,-672.74,0.000107,2]
[399799116,1766682638941,-1000.0,0.00010924,2]
[399799117,1766682638953,-1000.0,0.00010924,2]
[399799118,1766682638964,-365.0,0.00010924,2]
[399799119,1766682638974,-295.280721,0.00010924,2]
[399799120,1766682638985,-295.280721,0.00010924,2]
[399799121,1766682638996,-295.280721,0.00010924,2]
[399799122,1766682639007,-295.280721,0.00010924,2]
[399799123,1766682639018,-500.0,0.00010959,2]
[399799124,1766682639029,-500.0,0.00010959,2]
[399799125,1766682639040,-500.0,0.00010959,2]
[399799126,1766682639051,-500.0,0.00010959,2]
[399799127,1766682639062,-500.0,0.00010959,2]
[399799128,1766682639074,-500.0,0.00010959,2]
[399799129,1766682639084,-393.1597122,0.00010959,2]
[399799130,1766682639094,-500.0,0.00010959,2]
[399799131,1766682639105,-500.0,0.00010959,2]
[399799132,1766682639116,-672.74,0.000113,2]
[399799133,1766682639126,-672.74,0.000118,2]
[399799134,1766682639137,-161.63022251,0.00012148,2]
[399799135,1766682639148,-672.74,0.000124,2]
[399799136,1766682639158,-672.74,0.00013,2]
[399799137,1766682639169,-500.0,0.00013072,2]
[399799138,1766682639178,-500.0,0.00013072,2]
[399799139,1766682639189,-478.75725327,0.00013072,2]
[399799140,1766682639200,-500.0,0.00013072,2]
[399799141,1766682639210,-500.0,0.00013072,2]
[399799142,1766682639220,-500.0,0.00013072,2]
[399799143,1766682639230,-500.0,0.00013072,2]
[399799144,1766682639241,-250.0,0.00013072,2]
[399799145,1766682639252,-500.0,0.00013072,2]
[399799146,1766682639263,-250.0,0.00013072,2]
[399799147,1766682639274,-500.0,0.00013072,2]
[399799148,1766682639284,-250.0,0.00013072,2]
[399799149,1766682639294,-500.0,0.00013072,2]
[399799150,1766682639304,-250.0,0.00013072,2]
[399799151,1766682639314,-500.0,0.00013072,2]
[399799152,1766682639328,-250.0,0.00013072,2]
[399799153,1766682639338,-500.0,0.00013072,2]
[399799154,1766682639348,-250.0,0.00013072,2]
[399799155,1766682639357,-500.0,0.00013072,2]
[399799156,1766682639369,-250.0,0.00013072,2]
[399799157,1766682639379,-2312.83697232,0.00013072,2]
[399799158,1766682639390,-250.0,0.00013072,2]
[399799159,1766682639401,-500.0,0.00013072,2]
[399799160,1766682639411,-250.0,0.00013072,2]
[399799161,1766682639421,-250.0,0.00013072,2]
[399799162,1766682639431,-250.0,0.00013072,2]
[399799163,1766682639440,-250.0,0.00013072,2]
[399799164,1766682639450,-250.0,0.00013072,2]
[399799165,1766682639459,-295.280721,0.00013072,2]
[399799166,1766682639469,-295.280721,0.00013072,2]
[399799167,1766682639479,-295.280721,0.00013072,2]
[399799168,1766682639490,-295.280721,0.00013072,2]
[399799169,1766682639499,-500.0,0.00013273,2]
[399799170,1766682639509,-500.0,0.00013273,2]
[399799171,1766682639519,-500.0,0.00013273,2]
[399799172,1766682639529,-500.0,0.00013273,2]
[399799173,1766682639540,-500.0,0.00013273,2]
[399799174,1766682639549,-500.0,0.00013273,2]
[399799175,1766682639560,-500.0,0.00013273,2]
[399799176,1766682639570,-2148.3448925,0.0001349,2]
[399799177,1766682639579,-8370.648688,0.0001349,2]
[399799178,1766682639590,-672.74,0.000135,2]
[399799179,1766682639599,-496.47127164,0.0001362,2]
[399799180,1766682639609,-2398.4119403,0.0001362,2]
[399799181,1766682639618,-168.25479603,0.00013641,2]
[399799182,1766682639628,-2160.0,0.00013672,2]
[399799183,1766682639638,-633.0,0.00013672,2]
[399799184,1766682639647,-962.334,0.00013672,2]
[399799185,1766682639657,-300.0,0.00013673,2]
[399799186,1766682639667,-4491.0,0.00013681,2]
[399799187,1766682639677,-1000.0,0.00013699,2]
[399799188,1766682639687,-1453.652563,0.00013699,2]
[399799189,1766682639697,-151.0,0.00013699,2]
[399799191,1766682639706,-151.0,0.00013699,2]
[399799192,1766682639716,-301.181641,0.00013699,2]
[399799193,1766682639725,-450.73050318,0.00013699,2]
[399799194,1766682639735,-500.0,0.00013699,2]
[399799195,1766682639745,-500.0,0.00013699,2]
[399799196,1766682639755,-150.0,0.00013699,2]
[399799197,1766682639764,-500.0,0.00013699,2]
[399799198,1766682639773,-584.391894,0.00013699,2]
[399799199,1766682639784,-215.96285583,0.00013699,2]
[399799200,1766682639794,-500.0,0.00013699,2]
[399799201,1766682639804,-500.0,0.00013699,2]
[399799202,1766682639814,-500.0,0.00013699,2]
[399799203,1766682639824,-500.0,0.00013699,2]
[399799204,1766682639835,-500.0,0.00013699,2]
[399799205,1766682639844,-200.0,0.00013699,2]
[399799206,1766682639855,-2000.0,0.00013699,7]
[399799207,1766682639865,-500.0,0.00013699,2]
[399799208,1766682639875,-500.0,0.00013699,2]
[399799209,1766682639885,-500.0,0.00013699,2]
[399799210,1766682639895,-160.0,0.00013699,2]
[399799212,1766682639946,-475.0,0.00013764,2]
[399799213,1766682639956,-1000.0,0.00013821,2]
[399799214,1766682639966,-1000.0,0.00013821,2]
[399799215,1766682639975,-1000.0,0.00013821,2]
[399799216,1766682639984,-1000.0,0.00013821,2]
[399799217,1766682639994,-1000.0,0.00013821,2]
[399799219,1766682640004,-1000.0,0.00013821,2]
[399799221,1766682640014,-178.6827801,0.00013821,2]
[399799236,1766682640436,-151.0,0.00013699,2]
[399799238,1766682640445,-151.0,0.00013699,2]
[399799240,1766682640455,-151.0,0.00013699,2]
[399799242,1766682640464,-151.0,0.00013699,2]
[399799244,1766682640474,-151.0,0.00013699,2]
[399799246,1766682640485,-31.17330666,0.00013699,2]
[399799248,1766682640497,-119.82669334,0.00013699,2]
[399799250,1766682640507,-277.35066887,0.00013821,2]
[399799252,1766682640519,-543.96655103,0.00013821,2]
[399799254,1766682640528,-30.78844434,0.00013821,2]
[399799257,1766682640540,-282.24569259,0.00013821,2]
[399799258,1766682640549,-326.34176288,0.00014081,2]
[399799260,1766682640558,-2000.0,0.00014092,7]
[399799262,1766682640568,-672.74,0.000141,2]
[399799265,1766682640578,-514.84070869,0.00014168,2]
[399799267,1766682640588,-2487.15318209,0.00014168,2]
[399799269,1766682640597,-600.0,0.00014221,2]
[399799271,1766682640607,-1000.0,0.00014247,2]
[399799273,1766682640616,-1000.0,0.00014247,2]
[399799274,1766682640625,-250.0,0.00014247,2]
[399799276,1766682640634,-1000.0,0.00014247,2]
[399799278,1766682640644,-1000.0,0.00014247,2]
[399799280,1766682640653,-1000.0,0.00014247,2]
[399799282,1766682640662,-945.83984439,0.00014247,2]
[399799284,1766682640672,-1000.0,0.00014247,2]
[399799286,1766682640682,-1000.0,0.00014247,2]
[399799288,1766682640691,-1000.0,0.00014247,2]
[399799290,1766682640700,-1000.0,0.00014247,2]
[399799292,1766682640709,-1000.0,0.00014247,2]
[399799294,1766682640718,-22912.49057637,0.00014247,3]
[399799296,1766682640729,-3559.2082509,0.00014247,3]
[399799582,1766682643585,-3000.00000002,0.00010849,2]
[399799584,1766682643597,-1999.99999998,0.00010849,2]
[399799586,1766682643606,-146.76827262,0.00013699,2]
[399799591,1766682643638,-4.23172738,0.00013699,2]
[399799593,1766682643648,-151.0,0.00013699,2]
[399799595,1766682643658,-151.0,0.00013699,2]
[399799596,1766682643667,-151.0,0.00013699,2]
[399799599,1766682643676,-151.0,0.00013699,2]
[399799601,1766682643686,-151.0,0.00013699,2]
[399799602,1766682643696,-291.361151,0.00013699,2]
[399799605,1766682643705,-343.56276208,0.00014247,3]
[399799855,1766682646231,-1607.03640909,0.00014247,3]
[399799857,1766682646244,-2909.96738638,0.00014247,3]
[399799859,1766682646254,-260.0,0.00014247,2]
[399799861,1766682646264,-1500.0,0.00014368,2]
[399799863,1766682646273,-72.95813413,0.00014368,2]
[399799865,1766682646285,-1427.04186587,0.00014368,2]
[399799867,1766682646295,-1017.5211333,0.00014368,2]
[399799869,1766682646307,-482.4788667,0.00014368,2]
[399799871,1766682646317,-1500.0,0.00014368,2]
[399799873,1766682646331,-1500.0,0.00014368,2]
[399799875,1766682646340,-1500.0,0.00014368,2]
[399799877,1766682646351,-1500.0,0.00014368,2]
[399799879,1766682646360,-2000.0,0.00014486,7]
[399799881,1766682646371,-226.07254274,0.00014618,2]
[399799883,1766682646381,-151.0,0.000147,2]
[399799885,1766682646391,-672.74,0.000147,2]
[399799887,1766682646401,-533.88981491,0.00014716,2]
[399799889,1766682646411,-2579.17784983,0.00014716,2]
[399799891,1766682646420,-900.0,0.00014768,2]
[399799893,1766682646430,-1500.0,0.00014795,2]
[399799894,1766682646439,-1500.0,0.00014795,2]
[399799896,1766682646449,-441.49195121,0.00014795,2]
[399799899,1766682646459,-1500.0,0.00014795,2]
[399799901,1766682646469,-1021.41651486,0.00014795,2]
[399799902,1766682646479,-1634.33502026,0.00014795,2]
[399799905,1766682646489,-1500.0,0.00014795,2]
[399799907,1766682646499,-1500.0,0.00014795,2]
[399799909,1766682646510,-1500.0,0.00014795,2]
[399799911,1766682646519,-1500.0,0.00014795,2]
[399799912,1766682646529,-1500.0,0.00014795,2]
[399799914,1766682646538,-360.0,0.00014795,2]
[399799916,1766682646548,-997.39743949,0.000148,2]
[399800387,1766683179084,160.0,0.00032877,120]
[399800388,1766683201647,160.0,0.00032877,120]
[399800389,1766683231374,181.0,0.00032877,120]
[399800403,1766683559044,10045.14680133,0.00032876,120]
[399800407,1766683618845,1000.0,0.000328,120]
[399800420,1766683747305,1000.0,0.00032876,120]
[399800421,1766683756779,1000.0,0.00032876,120]
[399800422,1766683795876,5746.0,0.000328,120]
[399800450,1766683832535,-430.55,5e-05,2]
[399800451,1766683832546,-150.0,5.3e-05,2]
[399800452,1766683832556,-430.55,5.6e-05,2]
[399800453,1766683832566,-430.55,6.1e-05,2]
[399800454,1766683832575,-282.94,6.105e-05,2]
[399800455,1766683832585,-790.3733193,6.168e-05,2]
[399800456,1766683832596,-565.89,6.395e-05,2]
[399800457,1766683832606,-600.0,6.49e-05,2]
[399800458,1766683832616,-848.83,6.686e-05,2]
[399800459,1766683832626,-430.55,6.7e-05,2]
[399800460,1766683832636,-250.0,6.761e-05,2]
[399800461,1766683832645,-204.0,6.976e-05,2]
[399800462,1766683832655,-5315.2509345,6.977e-05,2]
[399800463,1766683832665,-1131.77,6.977e-05,2]
[399800464,1766683832676,-1227.15979951,7.093e-05,2]
[399800465,1766683832687,-720.0,7.139e-05,2]
[399800466,1766683832701,-1414.71,7.267e-05,2]
[399800467,1766683832710,-262.68248342,7.3e-05,2]
[399800468,1766683832720,-430.55,7.3e-05,2]
[399800469,1766683832730,-1227.15979951,7.357e-05,2]
[399800470,1766683832741,-1200.0,7.463e-05,2]
[399800471,1766683832752,-1697.66,7.558e-05,2]
[399800472,1766683832762,-1227.15979951,7.622e-05,2]
[399800473,1766683832772,-430.55,7.8e-05,2]
[399800474,1766683832783,-1980.6,7.849e-05,2]
[399800475,1766683832792,-524.39458418,7.851e-05,2]
[399800476,1766683832802,-864.0,7.853e-05,2]
[399800477,1766683832813,-1227.15979951,7.886e-05,2]
[399800478,1766683832826,-2263.54,8.139e-05,2]
[399800479,1766683832836,-1227.15979951,8.151e-05,2]
[399800480,1766683832846,-500.0,8.219e-05,2]
[399800481,1766683832856,-430.55,8.4e-05,2]
[399800482,1766683832867,-1227.15979951,8.415e-05,2]
[399800483,1766683832877,-2546.48,8.43e-05,2]
[399800484,1766683832887,-500.0,8.493e-05,2]
[399800485,1766683832899,-1000.0,8.639e-05,2]
[399800486,1766683832909,-1227.15979951,8.679e-05,2]
[399800487,1766683832919,-217.35879325,8.72e-05,2]
[399800488,1766683832929,-2829.43,8.721e-05,2]
[399800489,1766683832938,-564.51499178,8.767e-05,2]
[399800490,1766683832948,-1763.95927554,8.9e-05,2]
[399800491,1766683832958,-1227.15979951,8.944e-05,2]
[399800492,1766683832968,-430.55,9e-05,2]
[399800493,1766683832978,-1227.15979951,9.208e-05,2]
[399800494,1766683832988,-524.39458414,9.332e-05,2]
[399800495,1766683832998,-1228.38695931,9.473e-05,2]
[399800496,1766683833007,-644.0,9.502e-05,2]
[399800497,1766683833017,-430.55,9.6e-05,2]
[399800498,1766683833027,-430.55,0.000101,2]
[399800499,1766683833037,-430.55,0.000107,2]
[399800500,1766683833047,-524.39458414,0.00010714,2]
[399800501,1766683833057,-977.3,0.00010958,2]
[399800502,1766683833067,-977.3,0.00010958,2]
[399800503,1766683833076,-500.0,0.00010959,2]
[399800504,1766683833086,-500.0,0.00010959,2]
[399800505,1766683833096,-500.0,0.00010959,2]
[399800506,1766683833106,-500.0,0.00010959,2]
[399800507,1766683833116,-500.0,0.00010959,2]
[399800508,1766683833126,-500.0,0.00010959,2]
[399800509,1766683833136,-500.0,0.00010959,2]
[399800510,1766683833146,-500.0,0.00010959,2]
[399800511,1766683833155,-500.0,0.00010959,2]
[399800512,1766683833166,-427.4612411,0.00010959,2]
[399800513,1766683833175,-430.55,0.000113,2]
[399800514,1766683833186,-430.55,0.000118,2]
[399800515,1766683833195,-1041.66666667,0.00012172,2]
[399800516,1766683833205,-524.39458414,0.00012195,2]
[399800517,1766683833215,-430.55,0.000124,2]
[399800518,1766683833225,-76808.6106687,0.00012998,2]
[399800519,1766683833239,-16452.54741342,0.00012998,2]
[399800520,1766683833249,-977.3,0.00012998,2]
[399800521,1766683833259,-151.0,0.00012999,2]
[399800522,1766683833279,-430.55,0.00013,2]
[399800523,1766683833289,-977.3,0.00013227,2]
[399800524,1766683833299,-152.902083,0.00013228,2]
[399800525,1766683833315,-500.0,0.00013273,2]
[399800526,1766683833325,-500.0,0.00013273,2]
[399800527,1766683833335,-317.08625351,0.00013273,2]
[399800528,1766683833345,-500.0,0.00013273,2]
[399800529,1766683833354,-500.0,0.00013273,2]
[399800530,1766683833364,-500.0,0.00013273,2]
[399800531,1766683833374,-500.0,0.00013273,2]
[399800532,1766683833384,-151.0,0.00013424,2]
[399800533,1766683833394,-250.0,0.00013424,2]
[399800534,1766683833404,-151.0,0.00013424,2]
[399800535,1766683833414,-250.0,0.00013424,2]
[399800536,1766683833423,-500.0,0.00013424,2]
[399800537,1766683833435,-151.83723072,0.00013424,2]
[399800538,1766683833446,-500.0,0.00013424,2]
[399800539,1766683833456,-454.24553875,0.00013424,2]
[399800540,1766683833466,-246.84985962,0.00013424,2]
[399800541,1766683833476,-500.0,0.00013424,2]
[399800542,1766683833485,-500.0,0.00013424,2]
[399800543,1766683833495,-500.0,0.00013424,2]
[399800544,1766683833506,-478.75725327,0.00013424,2]
[399800545,1766683833516,-250.0,0.00013424,2]
[399800546,1766683833525,-500.0,0.00013424,2]
[399800547,1766683833535,-250.0,0.00013424,2]
[399800548,1766683833545,-500.0,0.00013424,2]
[399800549,1766683833555,-250.0,0.00013424,2]
[399800550,1766683833565,-160.0,0.00013424,2]
[399800551,1766683833575,-500.0,0.00013424,2]
[399800552,1766683833585,-250.0,0.00013424,2]
[399800553,1766683833595,-160.0,0.00013424,2]
[399800554,1766683833605,-335.77230478,0.00013424,2]
[399800555,1766683833615,-500.0,0.00013424,2]
[399800556,1766683833626,-187.32854759,0.00013424,2]
[399800557,1766683833636,-500.0,0.00013424,2]
[399800558,1766683833646,-151.0,0.00013424,2]
[399800559,1766683833661,-500.0,0.00013424,2]
[399800560,1766683833671,-151.0,0.00013424,2]
[399800561,1766683833681,-500.0,0.00013424,2]
[399800562,1766683833692,-151.0,0.00013424,2]
[399800563,1766683833702,-250.0,0.00013424,2]
[399800564,1766683833712,-151.0,0.00013424,2]
[399800565,1766683833723,-1000.0,0.00013424,2]
[399800566,1766683833735,-151.0,0.00013424,2]
[399800567,1766683833745,-1000.0,0.00013424,2]
[399800568,1766683833755,-151.0,0.00013424,2]
[399800569,1766683833765,-1000.0,0.00013424,2]
[399800570,1766683833775,-251.84562214,0.00013424,2]
[399800571,1766683833784,-1000.0,0.00013424,2]
[399800572,1766683833794,-2312.83697232,0.00013424,2]
[399800573,1766683833805,-1000.0,0.00013424,2]
[399800574,1766683833815,-1000.0,0.00013424,2]
[399800575,1766683833826,-1000.0,0.00013424,2]
[399800576,1766683833836,-1000.0,0.00013424,2]
[399800577,1766683833845,-250.0,0.00013424,2]
[399800578,1766683833855,-1004.71265739,0.00013424,2]
[399800579,1766683833866,-251.20637921,0.00013424,2]
[399800580,1766683833875,-430.55,0.000135,2]
[399800581,1766683833886,-300.0,0.00013673,2]
[399800582,1766683833899,-524.39458414,0.00013676,2]
[399800583,1766683833909,-500.0,0.00013699,2]
[399800584,1766683833919,-500.0,0.00013699,2]
[399800585,1766683833929,-200.0,0.00013699,2]
[399800586,1766683833939,-500.0,0.00013699,2]